Cogmind - Beta 12 *** ADVENTURER MODE // 2023.05.08 @ 20:22:22 Player: Deep Beef Result: Destroyed by D-53 Grenadier with Mini Grenade Launcher Performance ------------- Evolutions (1) 500 Regions Visited (4) 800 Robots Destroyed (32) 160 Value Destroyed (843) 843 Prototype IDs (3) 60 Alien Tech Used (0) 0 Bonus (58) 58 TOTAL SCORE: 2421 Bonus ------- Follower Combat Kills 58 Cogmind --------- Core Integrity 0/400 Matter 198/300 Energy 100/100 System Corruption 0% Temperature Cool (0) Movement Core (400) Ox7 Location -9/Mines Parts ------- > --- POWER (1) -------- (None) > --- PROPULSION (2) --- (None) > --- UTILITY (4) ------ Large Storage Unit Structural Scanner Visual Processing Unit > --- WEAPON (2) ------- Light Assault Rifle > --- INVENTORY (15) --- Light Treads Aluminum Leg Large Storage Unit Huge Storage Unit Mining Laser Blade Trap Blade Trap Blade Trap Peak State ------------ > --- POWER ------------ Light Nuclear Core > --- PROPULSION ------- Light Treads Light Treads > --- UTILITY ---------- Large Storage Unit Structural Scanner Visual Processing Unit > --- WEAPON ----------- EM Shotgun Autogun > --- INVENTORY -------- Light Treads Aluminum Leg Large Storage Unit Huge Storage Unit Light Assault Rifle Heavy Assault Rifle Mining Laser Blade Trap Blade Trap Blade Trap [Rating: 14] Favorites ----------- Power Ion Engine Engine Ion Engine Power Core Light Nuclear Core Propulsion Aluminum Leg Treads Light Treads Leg Aluminum Leg Utility Large Storage Unit Device Structural Scanner Storage Large Storage Unit Processor Visual Processing Unit Protection Medium Armor Plating Weapon Light Assault Rifle Energy Gun EM Pulse Gun Ballistic Gun Light Assault Rifle Special Weapon Mining Laser Build | -11 -10 -10 -9 -9 ------- Run | Jun Mat Min Mat Min Slots Evolved 2 | . . . 2 . Power . | . . . . . Propulsion . | . . . . . Utility 2 | . . . 2 . Weapon . | . . . . . Parts Attached 24 | 6 4 3 8 3 Power 3 | 1 1 . 1 . Engine 2 | 1 1 . . . Core 1 | . . . 1 . Reactor . | . . . . . Propulsion 5 | 2 . 1 2 . Treads 2 | . . . 2 . Leg 3 | 2 . 1 . . Wheel . | . . . . . Hover . | . . . . . Flight . | . . . . . Utility 6 | 1 3 . 1 1 Device 1 | . . . . 1 Storage 3 | 1 2 . . . Processor 1 | . 1 . . . Hackware . | . . . . . Protection 1 | . . . 1 . Artifact . | . . . . . Weapon 10 | 2 . 2 4 2 Energy Gun 4 | 1 . 1 2 . Energy Cannon . | . . . . . Ballistic Gun 5 | 1 . 1 1 2 Ballistic Cannon . | . . . . . Launcher . | . . . . . Special Weapon 1 | . . . 1 . Impact Weapon . | . . . . . Slashing Weapon . | . . . . . Piercing Weapon . | . . . . . Special Melee Weapon . | . . . . . Unidentified Prototypes . | . . . . . Parts Lost 11 | . 1 3 3 4 Power 3 | . 1 . 1 1 Propulsion 3 | . . 1 1 1 Utility 1 | . . . 1 . Weapon 4 | . . 2 . 2 Highest Loss Streak 4 | . 1 2 1 4 To Critical Strikes 1 | . . . . 1 Average Slot Usage (%) 93 | . 97 98 78 68 Engine 10 | . 12 14 1 . Core 1 | . . . 8 4 Treads 2 | . . . 11 13 Leg 23 | . 28 28 8 . Storage 13 | . 14 14 11 11 Processor 12 | . 12 14 11 11 Energy Gun 12 | . 14 13 8 4 Ballistic Gun 13 | . 14 12 11 13 Naked Turns . | . . . . . Heaviest Build 48 | 13 48 29 36 32 Greatest Support 40 | 20 20 20 40 40 Greatest Overweight (x) 7 | 2 2 1 3 7 Average Overweight (x) . | . . 1 . 2 Largest Inventory Capacity 15 | 8 15 15 15 15 Average Capacity 14 | 7 14 15 15 15 Most Carried 11 | . 6 10 11 10 Average Carried 6 | . 5 7 9 8 Final Capacity 15 | 8 15 15 15 15 Final Carried 11 | . 6 10 11 8 Class Distribution -------------------- 100% | Mutant Dominant Class ---------------- Mutant | -10/Materials Mutant | -10/Mines Mutant | -9/Materials Mutant | -9/Mines Resources | -11 -10 -10 -9 -9 ----------- Run | Jun Mat Min Mat Min Matter Collected 441 | 185 138 32 86 . Remotely . | . . . . . Salvage Created 1091 | . 449 195 396 51 Parts 66 | . 29 16 21 . Haulers Intercepted 1 | . 1 . . . Recyclers Shooed 1 | . . 1 . . Parts Field Recycled . | . . . . . Retrieved Matter . | . . . . . Parts Self-Destructed . | . . . . . Prevented . | . . . . . Kills | -11 -10 -10 -9 -9 ------- Run | Jun Mat Min Mat Min Combat Hostiles Destroyed 30 | . 12 4 11 3 Guns 25 | . 8 4 10 3 AOE 5 | . 4 . 1 . Classes Destroyed 7 | . 4 1 1 1 Tunneler 1 | . . 1 . . Hauler 1 | . 1 . . . Watcher 3 | . 2 . 1 . Swarmer 10 | . 6 . 4 . Grunt 14 | . 6 4 4 . Sentry 3 | . . . 3 . Assembled 3 | . . . . 3 Best Kill Streak 3 | . 3 2 3 3 Combat Bots Only 3 | . 3 2 3 3 Max Kills in Single Turn 3 | . 3 1 2 1 Gunslinging 1 | . 1 . 1 . Exploded 3 | . 3 . 1 . Melee . | . . . . . Uniques/NPCs Destroyed . | . . . . . Combat | -11 -10 -10 -9 -9 -------- Run | Jun Mat Min Mat Min Damage Taken 1829 | . 306 219 597 707 Core 528 | . 85 28 122 293 Absorbed by Shields . | . . . . . Core Remaining (%) 77 | 100 . 54 . . Volleys Fired 90 | . 27 19 30 14 Largest 2 | . 2 2 2 2 Hottest 120 | . 60 85 120 68 Shots Fired 156 | . 54 26 52 24 Gun 144 | . 54 26 40 24 Cannon . | . . . . . Launcher . | . . . . . Special 12 | . . . 12 . Kinetic 82 | . 27 12 22 21 Thermal 32 | . . 12 20 . Explosive . | . . . . . Electromagnetic 42 | . 27 2 10 3 Robot Hit Streak 16 | . 16 13 12 12 Robot Miss Streak 2 | . 2 1 1 2 Penetration Max . | . . . . . Secondary Targets 6 | . 2 1 2 1 Max Gunslinging Chain 1 | . 1 1 1 1 Shots Hit Robots 122 | . 44 23 33 22 Core Hits 64 | . 25 13 16 10 Critical Kills . | . . . . . Critical Parts Destroyed 1 | . 1 . . . Critical Strikes 3 | . 1 1 1 . Burn 2 | . . 1 1 . Destroy 1 | . 1 . . . Melee Attacks . | . . . . . Impact . | . . . . . Slashing . | . . . . . Piercing . | . . . . . Sneak Attacks . | . . . . . Combat Hostiles . | . . . . . Follow-up Attacks . | . . . . . Damage Inflicted 1941 | . 804 281 546 310 Guns 1521 | . 512 278 421 310 Cannons . | . . . . . Explosions 365 | . 267 . 98 . Melee . | . . . . . Ramming 31 | . 25 3 3 . Kinetic 718 | . 150 92 197 279 Thermal 638 | . 267 170 201 . Explosive . | . . . . . Electromagnetic 554 | . 362 16 145 31 Impact . | . . . . . Slashing . | . . . . . Piercing . | . . . . . Highest Corruption . | . . . . . Average Corruption . | . . . . . Corruption Purged . | . . . . . Corruption Blocked . | . . . . . Overload Shots . | . . . . . Overflow Damage 7 | . 2 . 5 . Projectiles . | . . . . . Explosions 7 | . 2 . 5 . Melee . | . . . . . Knockbacks . | . . . . . Impact . | . . . . . Kinetic . | . . . . . Secondary . | . . . . . Self-Inflicted Damage 161 | . 101 . 60 . Shots 5 | . 3 . 2 . Rammed . | . . . . . Targets Rammed 9 | . 5 1 3 . Kicked 9 | . 5 1 3 . Crushed . | . . . . . Highest Temperature 284 | . 78 284 174 51 Average Temperature 63 | . 25 136 51 25 Received Heat Transfer 392 | . 117 165 90 20 Siege Activations . | . . . . . Robots Corrupted . | . . . . . Combat Hostiles . | . . . . . Parts Fried . | . . . . . Impact Corruptions . | . . . . . Robots Melted . | . . . . . Combat Hostiles . | . . . . . Parts Melted 4 | . . . 4 . Heat Transferred 1290 | . 350 481 459 . Parts Sabotaged . | . . . . . Parts Stolen . | . . . . . Parts Stripped . | . . . . . Power Chain Reactions 5 | . 3 . 2 . Missiles Intercepted . | . . . . . Alert | -11 -10 -10 -9 -9 ------- Run | Jun Mat Min Mat Min Peak Influence 285 | . 285 85 253 83 Initial 83 | . . . 1 83 Average 68 | . 81 27 102 65 Maximum Alert Level 1 | . 1 . 1 . Low Security (%) 92 | 100 91 100 80 100 Level 1 7 | . 8 . 19 . Level 2 . | . . . . . Level 3 . | . . . . . Level 4 . | . . . . . Level 5 . | . . . . . High Security . | . . . . . Max Security . | . . . . . Squads Dispatched 1 | . 1 . . . Investigation 1 | . 1 . . . Extermination . | . . . . . Reinforcement . | . . . . . Assault . | . . . . . Garrison . | . . . . . Intercept . | . . . . . Searches Triggered . | . . . . . Construction Impeded . | . . . . . Haulers Reinforced . | . . . . . Active Scanning Responses . | . . . . . Cargo Convoy Interrupts . | . . . . . Stealth | -11 -10 -10 -9 -9 --------- Run | Jun Mat Min Mat Min Distress Signals 1 | . . . 1 . Communications Jammed . | . . . . . Distress Signals . | . . . . . Times Spotted 54 | . 20 4 16 14 Peak Tracking Total 12 | . 3 2 4 12 Tactical Retreats 2 | . . . . 2 Traps | -11 -10 -10 -9 -9 ------- Run | Jun Mat Min Mat Min Traps Triggered 1 | . 1 . . . Indirectly . | . . . . . Trap Hack Attempts . | . . . . . Triggered . | . . . . . Disarmed . | . . . . . Reprogrammed . | . . . . . Reused . | . . . . . Traps Extracted . | . . . . . Installed . | . . . . . Triggered . | . . . . . Most Traps Carried 3 | . . 3 3 3 Machines | -11 -10 -10 -9 -9 ---------- Run | Jun Mat Min Mat Min Machines Disabled 1 | . 1 . . . Max in Single Turn 1 | . 1 . . . Machines Repaired . | . . . . . Machines Sabotaged . | . . . . . Overloaded Fab Kills . | . . . . . Hacking | -11 -10 -10 -9 -9 --------- Run | Jun Mat Min Mat Min Machines Accessed 12 | . 7 . 5 . Terminals 12 | . 7 . 5 . Fabricators . | . . . . . Repair Stations . | . . . . . Recycling Units . | . . . . . Scanalyzers . | . . . . . Garrison Access . | . . . . . Total Hacks 37 | . 23 . 14 . Successful 22 | . 12 . 10 . Failed 15 | . 11 . 4 . Catastrophic . | . . . . . Database Lockouts . | . . . . . Manual 21 | . 12 . 9 . Terminals 37 | . 23 . 14 . Fabricators . | . . . . . Repair Stations . | . . . . . Recycling Units . | . . . . . Scanalyzers . | . . . . . Garrison Access . | . . . . . Terminal Hacks 12 | . 9 . 3 . Robot Analysis 6 | . 6 . . . Prototype ID Bank 1 | . 1 . . . Branch Access Points 2 | . 1 . 1 . Terminal Index 1 | . . . 1 . Alert Level 1 | . 1 . . . Registered Components 1 | . . . 1 . Fabricator Hacks . | . . . . . Repair Station Hacks . | . . . . . Recycling Unit Hacks . | . . . . . Scanalyzer . | . . . . . Garrison Access Hacks . | . . . . . Unauthorized Hacks 10 | . 3 . 7 . Terminals 10 | . 3 . 7 . Track 1 | . . . 1 . Assimilate 1 | . . . 1 . Botnet 8 | . 3 . 5 . Fabricators . | . . . . . Repair Stations . | . . . . . Recycling Units . | . . . . . Scanalyzers . | . . . . . Garrison Access . | . . . . . Data Cores Recovered . | . . . . . Used . | . . . . . Hacking Detections 8 | . 3 . 5 . Full Trace Events . | . . . . . Feedback Events . | . . . . . Feedback Blocked . | . . . . . Robot Schematics Acquired . | . . . . . Robots Built . | . . . . . Authchips . | . . . . . Time . | . . . . . Total Robot Build Rating . | . . . . . Part Schematics Acquired . | . . . . . Parts Built . | . . . . . Authchips . | . . . . . Time . | . . . . . Total Part Build Rating . | . . . . . Parts Repaired . | . . . . . Time . | . . . . . Parts Recycled . | . . . . . Recycled Matter . | . . . . . Retrieved Matter . | . . . . . Retrieved Components . | . . . . . Parts Scanalyzed . | . . . . . Part Schematics Acquired . | . . . . . Parts Damaged . | . . . . . Bothacking | -11 -10 -10 -9 -9 ------------ Run | Jun Mat Min Mat Min Used RIF Installer . | . . . . . Robots Hacked . | . . . . . Non-combat . | . . . . . Combat . | . . . . . Robot Hacks Applied . | . . . . . Relay Couplers Released . | . . . . . Fabnet Peak Effective % . | . . . . . Robots Rewired . | . . . . . Allies Hacked . | . . . . . Hacks Repelled . | . . . . . Allies | -11 -10 -10 -9 -9 -------- Run | Jun Mat Min Mat Min Total Allies 5 | . . 4 1 . Largest Group 3 | . . 3 3 . Highest-Rated Group 40 | . . 40 40 . Highest-Rated Ally 31 | . . 31 16 . Total Orders . | . . . . . Ally Attacks 22 | . . . 22 . Total Damage 215 | . . . 215 . Kills 2 | . . . 2 . Allies Corrupted . | . . . . . Allies Melted . | . . . . . Intel | -11 -10 -10 -9 -9 ------- Run | Jun Mat Min Mat Min Robot Analysis Total 6 | . 6 . . . Derelict Logs Recovered 3 | . . 2 . 1 Drone Launches . | . . . . . Drone Recoveries . | . . . . . Exploration | -11 -10 -10 -9 -9 ------------- Run | Jun Mat Min Mat Min Turns Passed 3814 | 46 1750 1148 789 81 Spaces Moved 1863 | 32 884 573 355 19 Core 12 | 6 . . . 6 Treads 248 | . . . 235 13 Legs 1603 | 26 884 573 120 . Wheels . | . . . . . Hover . | . . . . . Flight . | . . . . . Fastest Speed 50 | 50 120 190 160 160 Average Speed 186 | 116 185 190 184 235 Slowest Speed 400 | 150 260 190 330 400 Overloaded Moves . | . . . . . Propulsion Burnouts . | . . . . . Robots Hopped . | . . . . . Cave-ins Triggered 1 | . . . 1 . Exploration Rate (%) 50 | 4 98 97 38 16 Regions Visited 4 Branch Regions 2 Pre-discovered Areas 1 | . . 1 . . Known Exits Taken 2 | . 1 . 1 . Unknown Exits Taken 2 | 1 . 1 . . Scrap Searched 1 | . . 1 . . Spaces Dug 10 | . . . 10 . Terrain Destroyed 30 | . 7 . 23 . Melee . | . . . . . Projectile 10 | . . . 10 . AOE 20 | . 7 . 13 . Terrain Rammed . | . . . . . Walls Destroyed . | . . . . . Machines Disabled . | . . . . . Actions | -11 -10 -10 -9 -9 --------- Run | Jun Mat Min Mat Min Total 2032 | 37 937 608 414 36 Wait 29 | . 11 7 11 . Move 1859 | 31 883 572 354 19 Hop . | . . . . . Pick Up 17 | . 5 6 6 . Fast Attach 11 | 6 4 1 . . Attach 9 | . . 2 4 3 Detach 1 | . 1 . . . Swap 4 | . . . 4 . Drop 3 | . 1 . 2 . Fire 90 | . 27 19 30 14 Melee . | . . . . . Ram . | . . . . . Kick 9 | . 5 1 3 . Crush . | . . . . . Escape Stasis . | . . . . . Rewire . | . . . . . Trap . | . . . . . Miscellaneous . | . . . . . Route ------- -11/Junkyard -10/Materials (discovered 4 exits: *Mat x3 / *Min) -10/Mines (discovered 2 exits: *Mat x2) -9/Materials (discovered 5 exits: [*Mat] / *Min x2 / *Sto x2) -9/Mines History --------- Turn | Location | Event 27 | -11/Junkyard | Discovered new exit (range 16) 47 | -11/Junkyard | Entered Materials 257 | -10/Materials | Identified exit to Mines 304 | -10/Materials | Build established: Mutant 716 | -10/Materials | Discovered new exit (range 11) 906 | -10/Materials | Discovered new exit (range 6) 1172 | -10/Materials | Discovered new exit (range 7) 1797 | -10/Materials | Entered Mines 1971 | -10/Mines | Received a Mining Laser from a helpful Derelict 1977 | -10/Mines | Learned location of 1 exit from Materials 2348 | -10/Mines | Discovered new exit (range 7) 2647 | -10/Mines | Found a hidden stash of uninstalled traps 2695 | -10/Mines | Discovered new exit (range 18) 2731 | -10/Mines | Learned location of Zion (-6) 2938 | -10/Mines | Assisted by bots powering up and referring to "LRC-V3" 2945 | -10/Mines | Entered Materials 2945 | -9/Materials | Accompanied by 3 allies 2945 | -9/Materials | Evolved 2 slots: Utility x2 2946 | -9/Materials | Identified exit to Mines 3072 | -9/Materials | Crushed by falling debris 3478 | -9/Materials | Discovered new exit (range 10) 3497 | -9/Materials | Identified exit to Storage 3734 | -9/Materials | Entered Mines 3735 | -9/Mines | Assembled infested the area 3740 | -9/Mines | Assisted by a Guerilla fighting off Assembled 3740 | -9/Mines | Learned Materials terminal intel 3778 | -9/Mines | Core integrity fell below 50% 3800 | -9/Mines | Core integrity fell below 20% 3815 | -9/Mines | Destroyed by D-53 Grenadier with Mini Grenade Launcher Last Messages --------------- L0-QQ9(h) destroyed. Destroyed Asb. F-torch. EM Shotgun destroyed. Lgt. Nuclear Core destroyed. as-49511 destroyed. Lgt. Treads severed. as-83579 suffers critical hit (Destroy). as-83579 destroyed. Hvy. Assault Rifle severed. as-74423 destroyed. as-11037 destroyed. as-61856 destroyed. Switching to secondary target: as-33505. Autogun destroyed. Critical hit (Destroy). Lgt. Treads destroyed. The unstable cave ceiling collapses. as-34976 destroyed. as-33505 destroyed. The unstable cave ceiling collapses. Map ----- +----------------------------------------------------+ | ?????????????????????????????????????????? | | ?????????????????????????????????????????? | | ?????????????????????????????????????????? | | ?????????????????????????????????????????? | | ?????????????????????????????????????????? | | ?????????????????????????????????????????? | | ?????????????????????????????????????????? | | ?????????????????????????????????????????? | | ?????????????????????????????????????????? | | ?????????????????????????????????????????? | | ?????????????????????????????????????????? | | ??????????????????######?????????????????? | | ????????????????#########????????????????? | | ????????????????### ####???????????????? | | ????????????????## ###???????????????? | | ???????????????### ##???????????????? | | ???????????????#### ##???????????????? | | ???????????????## ##????????????????? | | ???????????????## !! ##????????????????? | | ???????????????## !! ##????????????????? | | ############???## ! #######???????????? | | ################# !! #######???????????? | | ## ##### # ## # ####?????????? | | ## # # ####?????????? | | ## %% ##?????????? | | ## ! d =[ @$ ##?????????? | | ##"% * # # #### ## ##?????????? | | # ######### a # ##?????????? | | ## ## ##?????## ## ###????????? | | ## ## ##?????## ##????????? | | ############ ##?????## ?? ###???????? | | ############ ##?????### ?? ##???????? | | ??????????## ##?????#### ??? ???????? | | ??????????## ##??????#### ??? ??????? | | ??????????## ##???????### ???? ?????? | | ???????????? ??????????## ??? ????? | | ???????????? ???????????? ???? ???? | | ???????????? ???????????? % ???? ???? | | ???????????# ??????????? *= ????? ???? | | ???????????###??????????? = ?????????? | | ???????????###??????????? ?????????? | | ????????????????????????? ????????????? | | ????????????????????????? ?????????????? | | ?????????????????????????????????????????? | | ?????????????????????????????????????????? | | ?????????????????????????????????????????? | | ?????????????????????????????????????????? | | ?????????????????????????????????????????? | | ?????????????????????????????????????????? | | ?????????????????????????????????????????? | +----------------------------------------------------+ Best States ------------- Heat Dissipation 28 Energy Generation 14 Energy Capacity 250 Matter Stores 300 Matter Capacity 300 Sight Range 18 Terrain Scan Density 10 Armor Coverage 225 Resistance: KI 20 Resistance: TH 20 Resistance: EX 20 Resistance: EM 20 Resistance: I 20 Resistance: S 20 Resistance: P 20 Evasion (%) 55 Recoil Reduction 2 Offensive Hacking 10 Item Schematics ----------------- None Robot Schematics ------------------ None Fabricated ------------ Nothing Alien Tech Used ----------------- None Achievements -------------- None Challenges ------------ None Game ------ Seed SalvageParticleMatrix Manual? 0 Play Time 00:27:00 Cumulative 123.8 hours Start 2023.05.08 @ 19:29:02 End 2023.05.08 @ 20:22:22 Sessions 1 Manual Loads 0 Difficulty Adventurer Special Mode None Game No. 115 Rogue 72 Adventurer 43 Explorer 0 Win Type - Total 0 Types 0/0/0/0/0/0/0/0/0 Lore% 41 Gallery% 54 Achievement% 40 Wizard Run 0 Options --------- ASCII 0 Keyboard 0 Movement Mouse Keybinds 0 Fullscreen 1 Font 12/Smallcaps Map View 83x54 Tactical HUD 0 Map Filters NONE Filters NONE Steam 1 RUN: bda02582-d355-4732-85aa-24999b12453c